fUST/lending_fUST_20241121
["ID","MTS","AMOUNT","RATE_DAILY","PERIOD"]
[342828855,1732164644210,-500.0,0.00021917,2]
[342828856,1732164644219,-500.0,0.00021917,2]
[342828857,1732164644229,-500.0,0.00021917,2]
[342828858,1732164644239,-500.0,0.00021917,2]
[342828859,1732164644248,-500.0,0.00021917,2]
[342828860,1732164644258,-500.0,0.00021917,2]
[342828861,1732164644268,-500.0,0.00021917,2]
[342828862,1732164644277,-521.97319099,0.00021917,2]
[342828863,1732164644287,-505.50711345,0.00021917,2]
[342828864,1732164644296,-500.0,0.00021917,2]
[342828865,1732164644305,-500.0,0.00021917,2]
[342828866,1732164644315,-500.0,0.00021917,2]
[342828867,1732164644324,-506.57096951,0.00021917,2]
[342828868,1732164644333,-500.0,0.00021917,2]
[342828869,1732164644344,-360.51209737,0.00021917,2]
[342828870,1732164644354,-514.07937694,0.00021917,2]
[342828871,1732164644364,-515.917611,0.00021917,2]
[342828872,1732164644373,-500.0,0.00021917,2]
[342828873,1732164644383,-500.0,0.00021917,2]
[342828874,1732164644393,-500.0,0.00021917,2]
[342828875,1732164644403,-500.0,0.00021917,2]
[342828876,1732164644413,-500.0,0.00021917,2]
[342828877,1732164644422,-500.0,0.00021917,2]
[342828878,1732164644432,-501.45794595,0.00021917,2]
[342828879,1732164644442,-500.0,0.00021917,2]
[342828880,1732164644451,-500.0,0.00021917,2]
[342828881,1732164644464,-500.0,0.00021917,2]
[342828882,1732164644473,-503.79101761,0.00021917,2]
[342828883,1732164644483,-500.0,0.00021917,2]
[342828884,1732164644493,-500.0,0.00021917,2]
[342828885,1732164644503,-500.0,0.00021917,2]
[342828886,1732164644512,-500.0,0.00021917,2]
[342828887,1732164644521,-345.21534335,0.00021917,2]
[342828888,1732164644531,-500.0,0.00021917,2]
[342828889,1732164644540,-500.0,0.00021917,2]
[342828890,1732164644549,-500.0,0.00021917,2]
[342828891,1732164644558,-500.0,0.00021917,2]
[342828892,1732164644567,-500.0,0.00021917,2]
[342828893,1732164644576,-501.14852265,0.00021917,2]
[342828894,1732164644586,-500.0,0.00021917,2]
[342828895,1732164644594,-505.14013894,0.00021917,2]
[342828896,1732164644604,-500.0,0.00021917,2]
[342828897,1732164644614,-547.61104443,0.00021917,2]
[342828898,1732164644623,-274.256,0.00021917,2]
[342828899,1732164644634,-503.2686677,0.00021917,2]
[342828900,1732164644644,-500.0,0.00021917,2]
[342828901,1732164644653,-426.24,0.00021917,2]
[342828902,1732164644663,-500.0,0.00021917,2]
[342828903,1732164644672,-500.0,0.00021917,2]
[342828904,1732164644682,-223.97636265,0.00021917,2]
[342828905,1732164644691,-527.37860286,0.00021917,2]
[342828906,1732164644700,-506.11840244,0.00021917,2]
[342828907,1732164644715,-497.78000803,0.00021917,2]
[342828908,1732164644724,-500.0,0.00021917,2]
[342828909,1732164644817,-508.59093393,0.00021917,2]
[342828910,1732164644828,-503.85802154,0.00021917,2]
[342828911,1732164644838,-500.0,0.00021917,2]
[342828912,1732164644847,-504.87069224,0.00021917,2]
[342828913,1732164644857,-500.0,0.00021917,2]
[342828914,1732164644866,-500.0,0.00021917,2]
[342828915,1732164644875,-500.0,0.00022191,2]
[342828916,1732164644884,-510.65189682,0.00022191,2]
[342828917,1732164644894,-500.0,0.00022191,2]
[342828918,1732164644903,-500.0,0.00022191,2]
[342828919,1732164644913,-500.0,0.00022191,2]
[342828920,1732164644922,-500.0,0.00022191,2]
[342828921,1732164644931,-500.0,0.00022191,2]
[342828922,1732164644941,-500.0,0.00022191,2]
[342828923,1732164644951,-500.0,0.00022191,2]
[342828924,1732164644963,-500.0,0.00022191,2]
[342828925,1732164644973,-500.0,0.00022191,2]
[342828926,1732164644982,-500.0,0.00022191,2]
[342828927,1732164644991,-100.89826425,0.00022191,2]
[342828928,1732164645005,-2932.89173575,0.00022191,2]
[342828929,1732164645014,-1561.5226585,0.00022191,2]
[342828947,1732164734519,2039.88340892,0.00025999,60]
[342828950,1732164853436,165.057262,0.00013973,2]
[342828952,1732165532528,165.057262,0.00013973,2]
[342829074,1732165834402,-785.7860447,0.00019807,2]
[342829075,1732165834412,-3000.0,0.00019819,2]
[342829076,1732165834422,-434.401199,0.00019822,2]
[342829077,1732165834431,-860.2637443,0.00019893,2]
[342829079,1732165834441,-203.773748,0.0002057,2]
[342829080,1732165834451,-907.0984716,0.00020635,2]
[342829081,1732165834463,-300.0,0.00020759,2]
[342829082,1732165834473,-300.0,0.00020759,2]
[342829083,1732165834483,-2516.81083983,0.0002076,2]
[342829084,1732165834496,-22383.18916017,0.0002076,2]
[342829085,1732165834504,-7688.58579523,0.0002119,2]
[342829086,1732165834517,-829.18905367,0.0002129,3]
[342829087,1732165834527,-703.52731717,0.0002129,2]
[342829088,1732165834537,-152.0,0.00021695,2]
[342829089,1732165834547,-150.64909178,0.00021747,2]
[342829090,1732165834557,-365.47340389,0.00021817,2]
[342829091,1732165834566,-3419.20994875,0.000219,4]
[342829092,1732165834576,-500.0,0.00021917,2]
[342829093,1732165834585,-500.0,0.00021917,2]
[342829094,1732165834595,-500.0,0.00021917,2]
[342829095,1732165834605,-500.0,0.00021917,2]
[342829096,1732165834614,-500.0,0.00021917,2]
[342829097,1732165834624,-510.77298888,0.00021917,2]
[342829098,1732165834633,-500.0,0.00021917,2]
[342829099,1732165834642,-503.58145223,0.00021917,2]
[342829100,1732165834652,-506.81223366,0.00021917,2]
[342829101,1732165834662,-500.0,0.00021917,2]
[342829102,1732165834671,-500.0,0.00021917,2]
[342829104,1732165834681,-516.89123885,0.00021917,2]
[342829105,1732165834690,-500.0,0.00021917,2]
[342829106,1732165834699,-502.55184889,0.00021917,2]
[342829107,1732165834709,-500.0,0.00021917,2]
[342829108,1732165834719,-500.0,0.00021917,2]
[342829109,1732165834729,-2361.82,0.00021917,2]
[342829110,1732165834738,-2844.81,0.00021917,2]
[342829111,1732165834748,-500.0,0.00021917,2]
[342829112,1732165834758,-500.0,0.00021917,2]
[342829113,1732165834768,-500.0,0.00021917,2]
[342829114,1732165834777,-500.0,0.00021917,2]
[342829115,1732165834787,-500.0,0.00021917,2]
[342829116,1732165834797,-500.0,0.00021917,2]
[342829117,1732165834807,-500.0,0.00021917,2]
[342829118,1732165834818,-500.0,0.00021917,2]
[342829119,1732165834829,-485.88912643,0.00021917,2]
[342829120,1732165834839,-500.0,0.00021917,2]
[342829121,1732165834849,-203.773748,0.0002194,2]
[342829122,1732165834858,-8714.89799476,0.00022151,2]
[342829123,1732165834868,-500.0,0.0002219,2]
[342829124,1732165834878,-500.0,0.0002219,2]
[342829125,1732165834888,-500.0,0.0002219,2]
[342829126,1732165834897,-503.85711461,0.00022191,2]
[342829127,1732165834907,-204.58628587,0.00022191,2]
[342829128,1732165834917,-500.0,0.00022191,2]
[342829129,1732165834926,-500.0,0.00022191,2]
[342829130,1732165834936,-508.14369018,0.00022191,2]
[342829131,1732165834945,-500.0,0.00022191,2]
[342829132,1732165834955,-500.0,0.00022191,2]
[342829133,1732165834971,-2361.82,0.00022191,2]
[342829134,1732165834985,-2844.81,0.00022191,2]
[342829135,1732165834998,-500.0,0.00022191,2]
[342829136,1732165835007,-500.0,0.00022191,2]
[342829137,1732165835017,-500.0,0.00022191,2]
[342829138,1732165835026,-503.14981712,0.00022191,2]
[342829139,1732165835038,-500.0,0.00022191,2]
[342829140,1732165835048,-500.0,0.00022191,2]
[342829141,1732165835058,-240.0434195,0.00022191,2]
[342829142,1732165835067,-500.0,0.00022191,2]
[342829143,1732165835076,-500.0,0.00022464,2]
[342829144,1732165835085,-500.0,0.00022464,2]
[342829145,1732165835094,-500.0,0.00022465,2]
[342829146,1732165835104,-500.0,0.00022465,2]
[342829147,1732165835113,-2361.82,0.00022465,2]
[342829148,1732165835123,-2844.81,0.00022465,2]
[342829149,1732165835132,-500.0,0.00022465,2]
[342829150,1732165835141,-500.0,0.00022465,2]
[342829151,1732165835150,-500.0,0.00022465,2]
[342829152,1732165835160,-500.0,0.00022465,2]
[342829153,1732165835169,-500.0,0.00022465,2]
[342829154,1732165835179,-1488.36787866,0.00022639,2]
[342829155,1732165835188,-424.02,0.00022729,3]
[342829156,1732165835198,-500.0,0.00022738,2]
[342829157,1732165835208,-396.84,0.00022738,2]
[342829158,1732165835221,-500.0,0.00022739,2]
[342829159,1732165835231,-500.0,0.00022739,2]
[342829160,1732165835240,-2361.82,0.00022739,2]
[342829161,1732165835250,-2844.81,0.00022739,2]
[342829162,1732165835261,-500.0,0.00022739,2]
[342829163,1732165835271,-500.0,0.00022739,2]
[342829164,1732165835280,-500.0,0.00022739,2]
[342829165,1732165835290,-500.0,0.00022739,2]
[342829166,1732165835299,-500.0,0.00022739,2]
[342829167,1732165835308,-500.0,0.00023012,2]
[342829168,1732165835317,-500.0,0.00023013,2]
[342829169,1732165835326,-500.0,0.00023013,2]
[342829170,1732165835335,-2361.82,0.00023013,2]
[342829171,1732165835344,-2844.81,0.00023013,2]
[342829172,1732165835353,-500.0,0.00023013,2]
[342829173,1732165835362,-500.0,0.00023013,2]
[342829174,1732165835371,-500.0,0.00023013,2]
[342829175,1732165835381,-500.0,0.00023013,2]
[342829176,1732165835390,-500.0,0.00023013,2]
[342829177,1732165835400,-500.0,0.00023284,2]
[342829178,1732165835409,-500.0,0.00023284,2]
[342829179,1732165835419,-479.06705538,0.00023284,2]
[342829180,1732165835428,-500.0,0.00023284,2]
[342829181,1732165835437,-500.0,0.00023284,2]
[342829182,1732165835447,-500.0,0.00023284,2]
[342829183,1732165835456,-500.0,0.00023284,2]
[342829184,1732165835468,-500.0,0.00023284,2]
[342829185,1732165835478,-222.97718663,0.00023284,2]
[342829186,1732165835487,-500.0,0.00023284,2]
[342829187,1732165835497,-500.0,0.00023284,2]
[342829188,1732165835507,-500.0,0.00023284,2]
[342829189,1732165835516,-500.0,0.00023284,2]
[342829190,1732165835525,-500.0,0.00023284,2]
[342829191,1732165835540,-500.0,0.00023284,2]
[342829192,1732165835555,-500.0,0.00023284,2]
[342829193,1732165835565,-500.0,0.00023284,2]
[342829194,1732165835574,-558.58348311,0.00023284,2]
[342829195,1732165835584,-500.0,0.00023284,2]
[342829196,1732165835593,-500.0,0.00023284,2]
[342829197,1732165835604,-500.0,0.00023284,2]
[342829198,1732165835617,-500.0,0.00023284,2]
[342829199,1732165835627,-500.0,0.00023284,2]
[342829200,1732165835637,-500.0,0.00023284,2]
[342829201,1732165835646,-500.0,0.00023284,2]
[342829202,1732165835656,-500.0,0.00023284,2]
[342829203,1732165835666,-500.0,0.00023284,2]
[342829204,1732165835676,-500.0,0.00023284,2]
[342829205,1732165835687,-500.0,0.00023284,2]
[342829206,1732165835698,-500.0,0.00023284,2]
[342829207,1732165835708,-256.5814031,0.00023284,2]
[342829208,1732165835721,-500.0,0.00023284,2]
[342829209,1732165835731,-500.0,0.00023284,2]
[342829210,1732165835741,-500.0,0.00023284,2]
[342829211,1732165835751,-500.0,0.00023284,2]
[342829212,1732165835761,-500.0,0.00023284,2]
[342829213,1732165835902,-500.0,0.00023284,2]
[342829214,1732165835912,-500.0,0.00023284,2]
[342829215,1732165835922,-500.0,0.00023284,2]
[342829216,1732165835932,-500.0,0.00023284,2]
[342829217,1732165835942,-500.0,0.00023284,2]
[342829218,1732165835952,-500.0,0.00023284,2]
[342829219,1732165835963,-500.0,0.00023284,2]
[342829220,1732165835975,-500.0,0.00023284,2]
[342829221,1732165835984,-500.0,0.00023284,2]
[342829222,1732165835993,-500.0,0.00023284,2]
[342829223,1732165836003,-500.0,0.00023284,2]
[342829224,1732165836013,-476.8283019,0.00023284,2]
[342829225,1732165836022,-500.0,0.00023284,2]
[342829226,1732165836031,-500.0,0.00023284,2]
[342829227,1732165836042,-500.0,0.00023284,2]
[342829228,1732165836051,-500.0,0.00023284,2]
[342829229,1732165836062,-500.0,0.00023284,2]
[342829230,1732165836071,-500.0,0.00023284,2]
[342829231,1732165836081,-500.0,0.00023284,2]
[342829232,1732165836092,-500.0,0.00023284,2]
[342829233,1732165836101,-500.0,0.00023284,2]
[342829234,1732165836112,-500.0,0.00023284,2]
[342829235,1732165836123,-500.0,0.00023284,2]
[342829236,1732165836133,-500.0,0.00023284,2]
[342829237,1732165836142,-500.0,0.00023284,2]
[342829238,1732165836152,-500.0,0.00023284,2]
[342829239,1732165836162,-500.0,0.00023284,2]
[342829240,1732165836171,-500.0,0.00023284,2]
[342829241,1732165836182,-500.0,0.00023284,2]
[342829242,1732165836191,-500.0,0.00023284,2]
[342829243,1732165836200,-500.0,0.00023284,2]
[342829244,1732165836210,-500.0,0.00023284,2]
[342829245,1732165836222,-500.0,0.00023284,2]
[342829246,1732165836231,-500.0,0.00023284,2]
[342829247,1732165836243,-500.0,0.00023284,2]
[342829248,1732165836253,-500.0,0.00023284,2]
[342829249,1732165836263,-250.0,0.00023284,2]
[342829250,1732165836272,-500.0,0.00023286,2]
[342829251,1732165836281,-500.0,0.00023287,2]
[342829252,1732165836291,-500.0,0.00023287,2]
[342829253,1732165836301,-500.0,0.00023287,2]
[342829254,1732165836310,-2361.82,0.00023287,2]
[342829255,1732165836320,-2844.81,0.00023287,2]
[342829256,1732165836329,-298.36,0.00023287,2]
[342829257,1732165836339,-500.0,0.00023287,2]
[342829258,1732165836348,-500.0,0.00023287,2]
[342829259,1732165836358,-210.64865314,0.00023287,2]
[342829260,1732165836367,-500.0,0.00023287,2]
[342829261,1732165836377,-503.39460848,0.00023425,2]
[342829262,1732165836386,-6121.27055407,0.00023461,2]
[342829263,1732165836396,-1488.36787866,0.00023461,2]
[342829264,1732165836405,-275.421,0.00023508,4]
[342829265,1732165836415,-500.21147311,0.00023542,2]
[342829266,1732165836424,-500.0,0.0002356,2]
[342829267,1732165836434,-500.0,0.00023561,2]
[342829268,1732165836444,-500.0,0.00023561,2]
[342829269,1732165836454,-2361.82,0.00023561,2]
[342829270,1732165836465,-2844.81,0.00023561,2]
[342829271,1732165836475,-228.08337498,0.00023561,2]
[342829272,1732165836485,-500.0,0.00023561,2]
[342829273,1732165836494,-500.0,0.00023561,2]
[342829274,1732165836503,-500.0,0.00023834,2]
[342829275,1732165836513,-500.0,0.00023835,2]
[342829276,1732165836523,-500.0,0.00023835,2]
[342829277,1732165836533,-2361.82,0.00023835,2]
[342829278,1732165836542,-2844.81,0.00023835,2]
[342829279,1732165836552,-500.0,0.00023835,2]
[342829280,1732165836561,-500.0,0.00023835,2]
[342829281,1732165836571,-641.32379689,0.00024108,2]
[342829282,1732165836581,-594.48605941,0.00024109,2]
[342829283,1732165836591,-500.0,0.00024109,2]
[342829284,1732165836601,-2361.82,0.00024109,2]
[342829285,1732165836611,-2844.81,0.00024109,2]
[342829286,1732165836621,-500.0,0.00024109,2]
[342829287,1732165836632,-500.0,0.00024109,2]
[342829288,1732165836641,-1488.36787866,0.00024283,2]
[342829289,1732165836651,-500.0,0.00024383,2]
[342829290,1732165836661,-2361.82,0.00024383,2]
[342829291,1732165836670,-2844.81,0.00024383,2]
[342829292,1732165836680,-500.0,0.00024383,2]
[342829293,1732165836689,-500.0,0.00024383,2]
[342829294,1732165836699,-236.11566391,0.00024656,2]
[342829295,1732165836708,-257.38124358,0.00024656,2]
[342829296,1732165836721,-261.00669225,0.00024656,2]
[342829297,1732165836731,-500.0,0.00024657,2]
[342829298,1732165836740,-2361.82,0.00024657,2]
[342829299,1732165836749,-2844.81,0.00024657,2]
[342829300,1732165836759,-500.0,0.00024657,2]
[342829301,1732165836770,-500.0,0.00024657,2]
[342829302,1732165836780,-200.0,0.00024658,15]
[342829303,1732165836791,-500.0,0.00024931,2]
[342829304,1732165836802,-2361.82,0.00024931,2]
[342829305,1732165836812,-2844.81,0.00024931,2]
[342829306,1732165836822,-500.0,0.00024931,2]
[342829307,1732165836831,-500.0,0.00024931,2]
[342829308,1732165836841,-1488.36787866,0.00025105,2]
[342829309,1732165836850,-502.63934283,0.00025118,9]
[342829310,1732165836859,-501.22515949,0.00025118,9]
[342829311,1732165836869,-500.0,0.00025205,2]
[342829312,1732165836879,-2361.82,0.00025205,2]
[342829313,1732165836888,-2844.81,0.00025205,2]
[342829314,1732165836898,-500.0,0.00025205,2]
[342829315,1732165836908,-500.0,0.00025205,2]
[342829316,1732165836917,-250000.0,0.00025379,2]
[342829317,1732165836928,-151.0,0.00025379,7]
[342829318,1732165836937,-224.452263,0.00025379,7]
[342829319,1732165836947,-224.452263,0.00025379,7]
[342829320,1732165836957,-151.0,0.00025379,7]
[342829321,1732165836971,-151.0,0.00025379,7]
[342829322,1732165836981,-1192.693642,0.00025379,7]
[342829323,1732165836991,-1192.693642,0.00025379,7]
[342829324,1732165837002,-718.492232,0.00025379,7]
[342829325,1732165837012,-718.492232,0.00025379,7]
[342829326,1732165837022,-1352.09865,0.00025379,7]
[342829327,1732165837031,-1352.09865,0.00025379,7]
[342829328,1732165837041,-623.483661,0.00025379,7]
[342829329,1732165837051,-151.0,0.00025379,7]
[342829330,1732165837061,-623.483661,0.00025379,7]
[342829331,1732165837070,-301.984354,0.00025379,7]
[342829332,1732165837080,-301.984354,0.00025379,7]
[342829333,1732165837089,-151.0,0.00025379,7]
[342829334,1732165837098,-151.0,0.00025379,7]
[342829335,1732165837108,-151.0,0.00025379,7]
[342829336,1732165837119,-151.0,0.00025379,7]
[342829337,1732165837128,-151.0,0.00025379,7]
[342829338,1732165837138,-271.149504,0.00025379,7]
[342829339,1732165837147,-271.149504,0.00025379,7]
[342829340,1732165837156,-151.741271,0.00025379,7]
[342829341,1732165837165,-151.0,0.00025379,7]
[342829342,1732165837175,-151.0,0.00025379,7]
[342829343,1732165837184,-1143.936926,0.00025379,7]
[342829344,1732165837193,-1143.936926,0.00025379,7]
[342829345,1732165837203,-151.0,0.00025379,7]
[342829346,1732165837215,-240.507187,0.00025379,7]
[342829347,1732165837224,-151.0,0.00025379,7]
[342829348,1732165837234,-151.0,0.00025379,7]
[342829349,1732165837244,-152.83876,0.00025379,7]
[342829350,1732165837254,-240.507187,0.00025379,7]
[342829351,1732165837263,-151.0,0.00025379,7]
[342829352,1732165837272,-151.554787,0.00025379,7]
[342829353,1732165837282,-151.0,0.00025379,7]
[342829354,1732165837291,-151.0,0.00025379,7]
[342829355,1732165837300,-151.40253,0.00025379,7]
[342829356,1732165837310,-706.149298,0.00025379,7]
[342829357,1732165837319,-706.149298,0.00025379,7]
[342829358,1732165837329,-151.0,0.00025379,7]
[342829359,1732165837338,-500.0,0.00025479,2]
[342829360,1732165837348,-2361.82,0.00025479,2]
[342829361,1732165837357,-2844.81,0.00025479,2]
[342829362,1732165837367,-500.0,0.00025479,2]
[342829363,1732165837376,-500.0,0.00025479,2]
[342829364,1732165837385,-692.33087,0.00025503,15]
[342829365,1732165837395,-566.07733203,0.00025753,2]
[342829366,1732165837403,-2361.82,0.00025753,2]
[342829367,1732165837414,-2844.81,0.00025753,2]
[342829368,1732165837423,-500.0,0.00025753,2]
[342829369,1732165837433,-500.0,0.00025753,2]
[342829370,1732165837442,-151.0,0.00025927,7]
[342829371,1732165837452,-151.0,0.00025927,7]
[342829372,1732165837461,-151.0,0.00025927,7]
[342829373,1732165837473,-151.0,0.00025927,7]
[342829375,1732165837482,-151.0,0.00025927,7]
[342829376,1732165837491,-151.0,0.00025927,7]
[342829377,1732165837501,-151.0,0.00025927,7]
[342829378,1732165837509,-1488.36787866,0.00025927,2]
[342829379,1732165837518,-2361.82,0.00026027,2]
[342829380,1732165837527,-2844.81,0.00026027,2]
[342829381,1732165837537,-500.0,0.00026027,2]
[342829382,1732165837547,-500.0,0.00026027,2]
[342829384,1732165837557,-406.87052055,0.00026064,7]
[342829385,1732165837567,-1801.56,0.000261,14]
[342829386,1732165837576,-1000.0,0.00026295,2]
[342829387,1732165837586,-2361.82,0.00026301,2]
[342829388,1732165837596,-2844.81,0.00026301,2]
[342829389,1732165837606,-502.14669204,0.00026301,2]
[342829390,1732165837617,-500.0,0.00026301,2]
[342829391,1732165837626,-243.02,0.000264,2]
[342829392,1732165837635,-155.604349,0.000264,13]
[342829393,1732165837645,-500.0,0.00026508,2]
[342829394,1732165837655,-593.95185125,0.00026508,2]
[342829395,1732165837665,-500.0,0.00026508,2]
[342829396,1732165837674,-2361.82,0.00026575,2]
[342829397,1732165837684,-2844.81,0.00026575,2]
[342829398,1732165837693,-261.02784933,0.00026575,2]
[342829399,1732165837703,-151.0,0.000266,7]
[342829400,1732165837712,-153.616568,0.000266,7]
[342829401,1732165837723,-151.0,0.000266,7]
[342829402,1732165837733,-151.0,0.000266,7]
[342829403,1732165837742,-229.717091,0.000266,7]
[342829404,1732165837751,-1559.48,0.000266,31]
[342829405,1732165837761,-1559.48,0.000266,31]
[342829406,1732165837770,-1559.48,0.000266,31]
[342829407,1732165837779,-1559.48,0.000266,31]
[342829408,1732165837788,-1559.48,0.000266,31]
[342829409,1732165837798,-1559.48,0.000266,31]
[342829410,1732165837807,-1559.48,0.000266,31]
[342829411,1732165837816,-1559.48,0.000266,31]
[342829412,1732165837826,-1559.48,0.000266,31]
[342829413,1732165837835,-1559.48,0.000266,31]
[342829414,1732165837844,-1559.48,0.000266,31]
[342829415,1732165837854,-1559.48,0.000266,31]
[342829416,1732165837864,-151.0,0.000266,7]
[342829417,1732165837873,-224.452263,0.000266,7]
[342829418,1732165837883,-224.452263,0.000266,7]
[342829419,1732165837892,-151.0,0.000266,7]
[342829420,1732165837901,-151.0,0.000266,7]
[342829421,1732165837911,-1192.693642,0.000266,7]
[342829422,1732165837921,-1192.693642,0.000266,7]
[342829423,1732165837930,-718.492232,0.000266,7]
[342829424,1732165837940,-718.492232,0.000266,7]
[342829425,1732165837949,-1352.09865,0.000266,7]
[342829426,1732165837959,-1352.09865,0.000266,7]
[342829427,1732165837974,-623.483661,0.000266,7]
[342829428,1732165837984,-151.0,0.000266,7]
[342829429,1732165837995,-623.483661,0.000266,7]
[342829430,1732165838005,-301.984354,0.000266,7]
[342829431,1732165838014,-301.984354,0.000266,7]
[342829432,1732165838024,-151.0,0.000266,7]
[342829433,1732165838034,-253.500947,0.000266,7]
[342829434,1732165838045,-151.0,0.000266,7]
[342829435,1732165838054,-151.0,0.000266,7]
[342829436,1732165838064,-151.0,0.000266,7]
[342829437,1732165838075,-271.149504,0.000266,7]
[342829438,1732165838084,-271.149504,0.000266,7]
[342829439,1732165838093,-151.0,0.000266,7]
[342829440,1732165838102,-151.731454,0.000266,7]
[342829441,1732165838111,-1143.936926,0.000266,7]
[342829442,1732165838121,-1143.936926,0.000266,7]
[342829443,1732165838131,-151.0,0.000266,7]
[342829444,1732165838141,-240.507187,0.000266,7]
[342829445,1732165838151,-151.0,0.000266,7]
[342829446,1732165838160,-151.0,0.000266,7]
[342829447,1732165838169,-240.507187,0.000266,7]
[342829448,1732165838257,-151.0,0.000266,7]
[342829449,1732165838267,-151.0,0.000266,7]
[342829450,1732165838276,-151.0,0.000266,7]
[342829451,1732165838285,-706.149298,0.000266,7]
[342829452,1732165838295,-706.149298,0.000266,7]
[342829453,1732165838304,-151.0,0.000266,7]
[342829454,1732165838314,-111316.64427916,0.000267,2]
[342829455,1732165838323,-245.82441159,0.00026748,2]
[342829456,1732165838332,-3371.8916606,0.00026748,2]
[342829457,1732165838342,-501.36306297,0.00026785,2]
[342829458,1732165838351,-2000.0,0.00026788,2]
[342829459,1732165838360,-2361.82,0.00026849,2]
[342829460,1732165838370,-2844.81,0.00026849,2]
[342829461,1732165838379,-423.7577855,0.00027014,2]
[342829462,1732165838389,-872.06333017,0.00027055,2]
[342829463,1732165838399,-151.0,0.00027123,7]
[342829464,1732165838407,-152.210063,0.00027123,7]
[342829465,1732165838417,-152.890774,0.00027123,7]
[342829466,1732165838426,-151.0,0.00027123,7]
[342829467,1732165838435,-151.0,0.00027123,7]
[342829468,1732165838444,-151.0,0.00027123,7]
[342829469,1732165838454,-2361.82,0.00027123,2]
[342829470,1732165838464,-2844.81,0.00027123,2]
[342829471,1732165838475,-151.0,0.000272,7]
[342829472,1732165838484,-151.0,0.000272,7]
[342829473,1732165838493,-151.0,0.000272,7]
[342829474,1732165838502,-151.0,0.000272,7]
[342829475,1732165838511,-151.0,0.000272,7]
[342829476,1732165838520,-151.0,0.000272,7]
[342829477,1732165838530,-151.0,0.000272,7]
[342829478,1732165838539,-151.232603,0.000272,7]
[342829479,1732165838548,-151.0,0.000272,7]
[342829480,1732165838557,-151.0,0.000272,7]
[342829481,1732165838566,-151.0,0.000272,7]
[342829482,1732165838575,-151.0,0.000272,7]
[342829483,1732165838585,-151.0,0.000272,7]
[342829484,1732165838594,-151.982718,0.000272,7]
[342829485,1732165838603,-229.717091,0.000272,7]
[342829486,1732165838613,-1559.48,0.000272,31]
[342829488,1732165838622,-1559.48,0.000272,31]
[342829489,1732165838632,-1559.48,0.000272,31]
[342829490,1732165838641,-1559.48,0.000272,31]
[342829492,1732165838650,-1559.48,0.000272,31]
[342829493,1732165838660,-1559.48,0.000272,31]
[342829494,1732165838669,-1559.48,0.000272,31]
[342829496,1732165838679,-1559.48,0.000272,31]
[342829497,1732165838688,-1559.48,0.000272,31]
[342829499,1732165838698,-1559.48,0.000272,31]
[342829500,1732165838707,-1559.48,0.000272,31]
[342829501,1732165838719,-1559.48,0.000272,31]
[342829502,1732165838728,-1559.48,0.000272,31]
[342829503,1732165838738,-1559.48,0.000272,31]